[Event "Titled Tuesday Blitz March 08 Late 2022"]
[White "Sanal, Vahap"]
[Black "Shuvalova, Polina"]
[WhiteFideId "6300545"]
[BlackFideId "24171760"]
[WhiteElo "2603"]
[BlackElo "2355"]
[Result "1-0"]
[Round "02"]
[TimeControl "180+1"]
[Date "2022.03.08"]
[WhiteClock "0:00:50"]
[BlackClock "0:00:05"]

1. e4 {[%clk 0:02:59]}  c5 {[%clk 0:02:58]} 2. Nc3 {[%clk 0:02:57]}  d6 {[%clk 0:02:54]} 3. Bb5+ {[%clk 0:02:54]}  Bd7 {[%clk 0:02:50]} 4. Bxd7+ {[%clk 0:02:53]}  Qxd7 {[%clk 0:02:49]} 5. d4 {[%clk 0:02:53]}  cxd4 {[%clk 0:02:50]} 6. Qxd4 {[%clk 0:02:53]}  Nc6 {[%clk 0:02:51]} 7. Qd3 {[%clk 0:02:54]}  g6 {[%clk 0:02:49]} 8. Nf3 {[%clk 0:02:53]}  Bg7 {[%clk 0:02:49]} 9. Bg5 {[%clk 0:02:52]}  Nf6 {[%clk 0:02:44]} 10. O-O {[%clk 0:02:53]}  O-O {[%clk 0:02:43]} 11. Nd5 {[%clk 0:02:53]}  Nxd5 {[%clk 0:02:16]} 12. exd5 {[%clk 0:02:53]}  Ne5 {[%clk 0:02:17]} 13. Nxe5 {[%clk 0:02:52]}  Bxe5 {[%clk 0:02:16]} 14. Rae1 {[%clk 0:02:49]}  Rfe8 {[%clk 0:02:14]} 15. c3 {[%clk 0:02:47]}  Rac8 {[%clk 0:02:11]} 16. f4 {[%clk 0:02:46]}  Bf6 {[%clk 0:01:56]} 17. h4 {[%clk 0:02:47]}  Bg7 {[%clk 0:01:34]} 18. f5 {[%clk 0:02:45]}  Be5 {[%clk 0:01:18]} 19. h5 {[%clk 0:02:33]}  f6 {[%clk 0:01:08]} 20. Be3 {[%clk 0:01:43]}  g5 {[%clk 0:01:01]} 21. Bxa7 {[%clk 0:01:41]}  Qa4 {[%clk 0:00:53]} 22. Bd4 {[%clk 0:01:40]}  Qxa2 {[%clk 0:00:53]} 23. Bxe5 {[%clk 0:01:39]}  dxe5 {[%clk 0:00:53]} 24. Rf2 {[%clk 0:01:27]}  Red8 {[%clk 0:00:51]} 25. Rd2 {[%clk 0:01:23]}  Rc5 {[%clk 0:00:47]} 26. Red1 {[%clk 0:01:17]}  Qa7 {[%clk 0:00:32]} 27. Qe3 {[%clk 0:01:14]}  Rd6 {[%clk 0:00:30]} 28. b4 {[%clk 0:01:12]}  Ra5 {[%clk 0:00:31]} 29. Qxa7 {[%clk 0:01:09]}  Rxa7 {[%clk 0:00:31]} 30. c4 {[%clk 0:01:10]}  b6 {[%clk 0:00:29]} 31. c5 {[%clk 0:01:10]}  bxc5 {[%clk 0:00:29]} 32. bxc5 {[%clk 0:01:11]}  Rd8 {[%clk 0:00:30]} 33. c6 {[%clk 0:01:01]}  Kf7 {[%clk 0:00:26]} 34. Rb1 {[%clk 0:00:59]}  Rc7 {[%clk 0:00:25]} 35. Rb6 {[%clk 0:00:58]}  Ra8 {[%clk 0:00:15]} 36. Kf2 {[%clk 0:00:58]}  Ra4 {[%clk 0:00:14]} 37. g3 {[%clk 0:00:56]}  h6 {[%clk 0:00:13]} 38. Rdb2 {[%clk 0:00:51]}  Rd4 {[%clk 0:00:13]} 39. Rb7 {[%clk 0:00:51]}  Rc8 {[%clk 0:00:13]} 40. Rd7 {[%clk 0:00:52]}  Ra8 {[%clk 0:00:12]} 41. c7 {[%clk 0:00:49]}  Ke8 {[%clk 0:00:04]} 42. Rb8+ {[%clk 0:00:46]}  Kxd7 {[%clk 0:00:05]} 43. Rxa8 {[%clk 0:00:46]}  Kxc7 {[%clk 0:00:05]} 44. Rh8 {[%clk 0:00:46]}  Rxd5 {[%clk 0:00:04]} 45. Rxh6 {[%clk 0:00:47]}  Rd8 {[%clk 0:00:05]} 46. Rh7 {[%clk 0:00:44]}  Kd7 {[%clk 0:00:05]} 47. h6 {[%clk 0:00:44]}  Kd6 {[%clk 0:00:03]} 48. Rg7 {[%clk 0:00:44]}  Rh8 {[%clk 0:00:04]} 49. h7 {[%clk 0:00:44]}  e6 {[%clk 0:00:04]} 50. g4 {[%clk 0:00:44]}  exf5 {[%clk 0:00:03]} 51. gxf5 {[%clk 0:00:45]}  e4 {[%clk 0:00:04]} 52. Kg3 {[%clk 0:00:43]}  Ke5 {[%clk 0:00:04]} 53. Kg4 {[%clk 0:00:44]}  e3 {[%clk 0:00:05]} 54. Re7+ {[%clk 0:00:45]}  Kd4 {[%clk 0:00:05]} 55. Kf3 {[%clk 0:00:45]}  g4+ {[%clk 0:00:02]} 56. Kxg4 {[%clk 0:00:45]}  Kd3 {[%clk 0:00:02]} 57. Kf3 {[%clk 0:00:46]}  e2 {[%clk 0:00:03]} 58. Rd7+ {[%clk 0:00:47]}  Kc2 {[%clk 0:00:03]} 59. Kxe2 {[%clk 0:00:47]}  Kc3 {[%clk 0:00:02]} 60. Kf3 {[%clk 0:00:48]}  Kc4 {[%clk 0:00:03]} 61. Kg4 {[%clk 0:00:48]}  Kc5 {[%clk 0:00:04]} 62. Kh5 {[%clk 0:00:49]}  Kc6 {[%clk 0:00:04]} 63. Rf7 {[%clk 0:00:49]}  Kd6 {[%clk 0:00:05]} 64. Kg6 {[%clk 0:00:50]}  Ke5 {[%clk 0:00:06]} 65. Re7+ {[%clk 0:00:50]}  Kd6 {[%clk 0:00:05]} 66. Re6+ {[%clk 0:00:50]}  Kd7 {[%clk 0:00:05]} 67. Kg7 {[%clk 0:00:50]}  Ra8 {[%clk 0:00:05]} 68. h8=Q {[%clk 0:00:50]} 1-0


[Site "https://www.chess.com"]

[Event "Titled Tuesday Blitz March 08 Late 2022"]
[White "Sarkar, Justin"]
[Black "Aggelis, Nikolaos"]
[WhiteFideId "2010011"]
[BlackFideId "4213220"]
[WhiteElo "2038"]
[BlackElo "2154"]
[Result "1-0"]
[Round "02"]
[TimeControl "180+1"]
[Date "2022.03.09"]
[WhiteClock "0:00:06"]
[BlackClock "0:00:31"]

1. e4 {[%clk 0:02:55]}  Nf6 {[%clk 0:01:58]} 2. e5 {[%clk 0:02:53]}  Nd5 {[%clk 0:01:58]} 3. Bc4 {[%clk 0:02:40]}  Nb6 {[%clk 0:01:50]} 4. Bb3 {[%clk 0:02:39]}  d5 {[%clk 0:01:50]} 5. d4 {[%clk 0:02:31]}  Bf5 {[%clk 0:01:50]} 6. Nf3 {[%clk 0:02:27]}  e6 {[%clk 0:01:50]} 7. O-O {[%clk 0:02:23]}  c5 {[%clk 0:01:50]} 8. dxc5 {[%clk 0:02:18]}  Bxc5 {[%clk 0:01:49]} 9. Nd4 {[%clk 0:02:18]}  Bxd4 {[%clk 0:01:46]} 10. Qxd4 {[%clk 0:02:18]}  Nc6 {[%clk 0:01:47]} 11. Qe3 {[%clk 0:02:00]}  d4 {[%clk 0:01:44]} 12. Qg3 {[%clk 0:01:58]}  O-O {[%clk 0:01:42]} 13. Bg5 {[%clk 0:01:48]}  Qc7 {[%clk 0:01:42]} 14. f4 {[%clk 0:01:29]}  a5 {[%clk 0:01:35]} 15. a4 {[%clk 0:01:00]}  Nb4 {[%clk 0:01:34]} 16. c3 {[%clk 0:00:57]}  dxc3 {[%clk 0:01:08]} 17. Nxc3 {[%clk 0:00:57]}  Rac8 {[%clk 0:01:07]} 18. Nb5 {[%clk 0:00:39]}  Qc5+ {[%clk 0:01:06]} 19. Kh1 {[%clk 0:00:39]}  Bc2 {[%clk 0:01:01]} 20. Rac1 {[%clk 0:00:34]}  Nxa4 {[%clk 0:00:51]} 21. Bh6 {[%clk 0:00:28]}  g6 {[%clk 0:00:50]} 22. Bxf8 {[%clk 0:00:27]}  Qxf8 {[%clk 0:00:51]} 23. Nd6 {[%clk 0:00:22]}  Rc7 {[%clk 0:00:41]} 24. Bxa4 {[%clk 0:00:22]}  Nd3 {[%clk 0:00:39]} 25. Rxc2 {[%clk 0:00:21]}  Nc5 {[%clk 0:00:38]} 26. Rxc5 {[%clk 0:00:20]}  Rxc5 {[%clk 0:00:38]} 27. Be8 {[%clk 0:00:20]}  Rc7 {[%clk 0:00:36]} 28. Qg5 {[%clk 0:00:17]}  f5 {[%clk 0:00:36]} 29. Bf7+ {[%clk 0:00:10]}  Rxf7 {[%clk 0:00:34]} 30. Nxf7 {[%clk 0:00:09]}  Qxf7 {[%clk 0:00:35]} 31. Rd1 {[%clk 0:00:10]}  Kg7 {[%clk 0:00:34]} 32. Qd8 {[%clk 0:00:08]}  Kh6 {[%clk 0:00:34]} 33. Rd7 {[%clk 0:00:07]}  Qg7 {[%clk 0:00:31]} 34. Qg5# {[%clk 0:00:06]} 1-0


[Site "https://www.chess.com"]

[Event "Titled Tuesday Blitz March 08 Late 2022"]
[White "Song, Michael"]
[Black "Wartiovaara, Oliver"]
[WhiteFideId "2613190"]
[BlackFideId "513024"]
[WhiteElo "2274"]
[BlackElo "1971"]
[Result "1-0"]
[Round "02"]
[TimeControl "180+1"]
[Date "2022.03.09"]
[WhiteClock "0:00:17"]
[BlackClock "0:00:02"]

1. d4 {[%clk 0:02:51]}  Nf6 {[%clk 0:02:59]} 2. Bg5 {[%clk 0:02:50]}  Ne4 {[%clk 0:02:59]} 3. Bf4 {[%clk 0:02:50]}  d5 {[%clk 0:03:00]} 4. f3 {[%clk 0:02:50]}  Nf6 {[%clk 0:02:59]} 5. e3 {[%clk 0:02:45]}  c5 {[%clk 0:02:59]} 6. c3 {[%clk 0:02:43]}  Nc6 {[%clk 0:02:55]} 7. Bd3 {[%clk 0:02:41]}  e6 {[%clk 0:02:50]} 8. Ne2 {[%clk 0:02:39]}  Be7 {[%clk 0:02:45]} 9. O-O {[%clk 0:02:37]}  O-O {[%clk 0:02:43]} 10. Bg3 {[%clk 0:02:33]}  b6 {[%clk 0:02:16]} 11. Nd2 {[%clk 0:02:33]}  Bb7 {[%clk 0:02:12]} 12. Rc1 {[%clk 0:02:29]}  Rc8 {[%clk 0:02:10]} 13. Qa4 {[%clk 0:02:25]}  Qd7 {[%clk 0:02:06]} 14. Kh1 {[%clk 0:02:07]}  Rfd8 {[%clk 0:01:58]} 15. f4 {[%clk 0:02:06]}  a6 {[%clk 0:01:26]} 16. h3 {[%clk 0:01:51]}  b5 {[%clk 0:01:25]} 17. Qd1 {[%clk 0:01:49]}  b4 {[%clk 0:01:12]} 18. Ng1 {[%clk 0:01:38]}  bxc3 {[%clk 0:01:03]} 19. bxc3 {[%clk 0:01:38]}  cxd4 {[%clk 0:01:03]} 20. exd4 {[%clk 0:01:33]}  Na5 {[%clk 0:00:49]} 21. Ngf3 {[%clk 0:01:31]}  Nc4 {[%clk 0:00:49]} 22. Ne5 {[%clk 0:01:27]}  Nxe5 {[%clk 0:00:47]} 23. fxe5 {[%clk 0:01:26]}  Ne4 {[%clk 0:00:48]} 24. Bxe4 {[%clk 0:00:29]}  dxe4 {[%clk 0:00:49]} 25. Bf2 {[%clk 0:00:27]}  Bg5 {[%clk 0:00:45]} 26. Qe2 {[%clk 0:00:26]}  Qd5 {[%clk 0:00:20]} 27. Be3 {[%clk 0:00:25]}  Bxe3 {[%clk 0:00:19]} 28. Qxe3 {[%clk 0:00:26]}  Qxa2 {[%clk 0:00:20]} 29. Nxe4 {[%clk 0:00:25]}  Qd5 {[%clk 0:00:19]} 30. Rf4 {[%clk 0:00:23]}  a5 {[%clk 0:00:14]} 31. Rcf1 {[%clk 0:00:21]}  Rc7 {[%clk 0:00:12]} 32. Rg4 {[%clk 0:00:21]}  Kh8 {[%clk 0:00:11]} 33. Qg5 {[%clk 0:00:18]}  Rg8 {[%clk 0:00:03]} 34. Nf6 {[%clk 0:00:18]}  h6 {[%clk 0:00:02]} 35. Qxh6+ {[%clk 0:00:17]} 1-0


[Site "https://www.chess.com"]

[Event "Titled Tuesday Blitz March 08 Late 2022"]
[White "Supatashvili, Khvicha"]
[Black "Bibasa, Bob"]
[WhiteFideId "13600664"]
[BlackFideId "10000240"]
[WhiteElo "2717"]
[BlackElo "2056"]
[Result "1-0"]
[Round "02"]
[TimeControl "180+1"]
[Date "2022.03.09"]
[WhiteClock "0:02:19"]
[BlackClock "0:01:15"]

1. e4 {[%clk 0:03:00]}  c5 {[%clk 0:02:59]} 2. Nf3 {[%clk 0:03:00]}  d6 {[%clk 0:03:00]} 3. Bb5+ {[%clk 0:03:00]}  Nd7 {[%clk 0:03:00]} 4. c3 {[%clk 0:02:59]}  a6 {[%clk 0:02:59]} 5. Ba4 {[%clk 0:02:59]}  Nf6 {[%clk 0:02:58]} 6. Bc2 {[%clk 0:02:59]}  g6 {[%clk 0:02:58]} 7. d4 {[%clk 0:02:59]}  Bg7 {[%clk 0:02:58]} 8. O-O {[%clk 0:02:59]}  O-O {[%clk 0:02:58]} 9. Re1 {[%clk 0:02:59]}  b5 {[%clk 0:02:58]} 10. e5 {[%clk 0:02:57]}  Ne8 {[%clk 0:02:54]} 11. e6 {[%clk 0:02:53]}  fxe6 {[%clk 0:02:52]} 12. Ng5 {[%clk 0:02:53]}  Nc7 {[%clk 0:02:52]} 13. Nxh7 {[%clk 0:02:51]}  Kxh7 {[%clk 0:02:29]} 14. Qh5+ {[%clk 0:02:50]}  Kg8 {[%clk 0:02:30]} 15. Qxg6 {[%clk 0:02:46]}  Nf6 {[%clk 0:02:29]} 16. Bh6 {[%clk 0:02:44]}  Nce8 {[%clk 0:02:26]} 17. dxc5 {[%clk 0:02:43]}  dxc5 {[%clk 0:02:19]} 18. Nd2 {[%clk 0:02:42]}  Bb7 {[%clk 0:02:10]} 19. Rxe6 {[%clk 0:02:35]}  Bd5 {[%clk 0:01:59]} 20. Bf5 {[%clk 0:02:28]}  Bxe6 {[%clk 0:01:48]} 21. Bxe6+ {[%clk 0:02:28]}  Kh8 {[%clk 0:01:48]} 22. Nf3 {[%clk 0:02:24]}  Qd6 {[%clk 0:01:31]} 23. Ng5 {[%clk 0:02:21]}  Rd8 {[%clk 0:01:20]} 24. Bxg7+ {[%clk 0:02:19]}  Nxg7 {[%clk 0:01:17]} 25. Qh6+ {[%clk 0:02:19]}  Nh7 {[%clk 0:01:15]} 26. Qxh7# {[%clk 0:02:19]} 1-0


[Site "https://www.chess.com"]

[Event "Titled Tuesday Blitz March 08 Late 2022"]
[White "Svicevic, Rastko"]
[Black "Tymrakiewicz, Rafal"]
[WhiteFideId "916315"]
[BlackFideId "1108832"]
[WhiteElo "2132"]
[BlackElo "2205"]
[Result "1/2-1/2"]
[Round "02"]
[TimeControl "180+1"]
[Date "2022.03.09"]
[WhiteClock "0:00:05"]
[BlackClock "0:00:07"]

1. e4 {[%clk 0:03:00]}  c6 {[%clk 0:02:58]} 2. Nc3 {[%clk 0:02:59]}  d5 {[%clk 0:02:58]} 3. Nf3 {[%clk 0:02:59]}  dxe4 {[%clk 0:02:58]} 4. Nxe4 {[%clk 0:02:59]}  Nf6 {[%clk 0:02:59]} 5. Nxf6+ {[%clk 0:02:59]}  gxf6 {[%clk 0:03:00]} 6. d4 {[%clk 0:02:56]}  Rg8 {[%clk 0:02:59]} 7. g3 {[%clk 0:02:49]}  Bg4 {[%clk 0:02:59]} 8. Bg2 {[%clk 0:02:49]}  h5 {[%clk 0:02:58]} 9. Bf4 {[%clk 0:02:42]}  Nd7 {[%clk 0:02:52]} 10. Qd2 {[%clk 0:02:38]}  Qb6 {[%clk 0:02:23]} 11. O-O-O {[%clk 0:02:36]}  O-O-O {[%clk 0:02:23]} 12. Qc3 {[%clk 0:02:27]}  e6 {[%clk 0:02:16]} 13. a3 {[%clk 0:02:23]}  e5 {[%clk 0:01:47]} 14. dxe5 {[%clk 0:02:20]}  fxe5 {[%clk 0:01:47]} 15. Nxe5 {[%clk 0:02:19]}  Bxd1 {[%clk 0:01:40]} 16. Rxd1 {[%clk 0:02:13]}  Bg7 {[%clk 0:01:39]} 17. Nxf7 {[%clk 0:01:30]}  Bxc3 {[%clk 0:01:24]} 18. Nd6+ {[%clk 0:01:30]}  Kc7 {[%clk 0:01:25]} 19. Nc4+ {[%clk 0:01:30]}  Be5 {[%clk 0:01:14]} 20. Rxd7+ {[%clk 0:01:11]}  Kxd7 {[%clk 0:01:00]} 21. Nxb6+ {[%clk 0:01:09]}  axb6 {[%clk 0:00:35]} 22. Bxe5 {[%clk 0:01:09]}  Ke6 {[%clk 0:00:32]} 23. Bc7 {[%clk 0:01:07]}  Rdf8 {[%clk 0:00:14]} 24. Bh3+ {[%clk 0:01:04]}  Rg4 {[%clk 0:00:11]} 25. Bxb6 {[%clk 0:00:59]}  Kd5 {[%clk 0:00:11]} 26. Bxg4 {[%clk 0:00:43]}  hxg4 {[%clk 0:00:11]} 27. Kd2 {[%clk 0:00:32]}  Ke4 {[%clk 0:00:11]} 28. Be3 {[%clk 0:00:26]}  Rh8 {[%clk 0:00:10]} 29. c4 {[%clk 0:00:24]}  Rxh2 {[%clk 0:00:10]} 30. b4 {[%clk 0:00:23]}  Rh5 {[%clk 0:00:10]} 31. a4 {[%clk 0:00:22]}  Rf5 {[%clk 0:00:09]} 32. b5 {[%clk 0:00:21]}  cxb5 {[%clk 0:00:08]} 33. axb5 {[%clk 0:00:21]}  Rf7 {[%clk 0:00:07]} 34. Kc3 {[%clk 0:00:20]}  Rd7 {[%clk 0:00:06]} 35. Kb4 {[%clk 0:00:19]}  Kf3 {[%clk 0:00:05]} 36. Kc5 {[%clk 0:00:19]}  Re7 {[%clk 0:00:04]} 37. Kb6 {[%clk 0:00:17]}  Rxe3 {[%clk 0:00:03]} 38. fxe3 {[%clk 0:00:16]}  Kxg3 {[%clk 0:00:04]} 39. c5 {[%clk 0:00:15]}  Kf3 {[%clk 0:00:04]} 40. c6 {[%clk 0:00:11]}  bxc6 {[%clk 0:00:04]} 41. bxc6 {[%clk 0:00:12]}  g3 {[%clk 0:00:05]} 42. c7 {[%clk 0:00:12]}  g2 {[%clk 0:00:06]} 43. c8=Q {[%clk 0:00:12]}  g1=Q {[%clk 0:00:06]} 44. Qf8+ {[%clk 0:00:11]}  Ke2 {[%clk 0:00:06]} 45. Qe8 {[%clk 0:00:05]}  Qxe3+ {[%clk 0:00:06]} 46. Qxe3+ {[%clk 0:00:05]}  Kxe3 {[%clk 0:00:07]} 1/2-1/2


[Site "https://www.chess.com"]

[Event "Titled Tuesday Blitz March 08 Late 2022"]
[White "Sztokbant, Bernardo Vainzoff"]
[Black "Xu, Yi"]
[WhiteFideId "2115956"]
[BlackFideId "8605564"]
[WhiteElo "2237"]
[BlackElo "2471"]
[Result "0-1"]
[Round "02"]
[TimeControl "180+1"]
[Date "2022.03.08"]
[WhiteClock "0:00:02"]
[BlackClock "0:00:24"]

1. e4 {[%clk 0:02:42]}  c5 {[%clk 0:02:59]} 2. Nf3 {[%clk 0:02:41]}  d6 {[%clk 0:02:59]} 3. d4 {[%clk 0:02:42]}  cxd4 {[%clk 0:03:00]} 4. Qxd4 {[%clk 0:02:41]}  a6 {[%clk 0:02:55]} 5. Nc3 {[%clk 0:02:40]}  Nc6 {[%clk 0:02:55]} 6. Qe3 {[%clk 0:02:40]}  g6 {[%clk 0:02:55]} 7. Bc4 {[%clk 0:02:41]}  Bg7 {[%clk 0:02:53]} 8. h3 {[%clk 0:02:39]}  Nf6 {[%clk 0:02:53]} 9. O-O {[%clk 0:02:38]}  O-O {[%clk 0:02:51]} 10. Rd1 {[%clk 0:02:38]}  Qa5 {[%clk 0:02:48]} 11. Bd2 {[%clk 0:02:25]}  Qc7 {[%clk 0:02:36]} 12. Bb3 {[%clk 0:02:20]}  Na5 {[%clk 0:02:26]} 13. Qe2 {[%clk 0:02:17]}  Nxb3 {[%clk 0:02:25]} 14. axb3 {[%clk 0:02:18]}  Bd7 {[%clk 0:02:17]} 15. Bg5 {[%clk 0:02:13]}  Bc6 {[%clk 0:02:16]} 16. Nd4 {[%clk 0:02:09]}  h6 {[%clk 0:02:12]} 17. Bh4 {[%clk 0:01:57]}  a5 {[%clk 0:01:53]} 18. Rd3 {[%clk 0:01:49]}  Rfe8 {[%clk 0:01:50]} 19. Re1 {[%clk 0:01:44]}  Nd7 {[%clk 0:01:49]} 20. Nd5 {[%clk 0:01:19]}  Bxd5 {[%clk 0:01:42]} 21. exd5 {[%clk 0:01:20]}  Ne5 {[%clk 0:01:41]} 22. Rdd1 {[%clk 0:01:10]}  g5 {[%clk 0:01:36]} 23. Bg3 {[%clk 0:01:10]}  Qd7 {[%clk 0:01:36]} 24. Qe4 {[%clk 0:01:05]}  a4 {[%clk 0:01:36]} 25. Nf5 {[%clk 0:00:58]}  axb3 {[%clk 0:01:31]} 26. cxb3 {[%clk 0:00:58]}  Ng6 {[%clk 0:01:28]} 27. h4 {[%clk 0:00:45]}  gxh4 {[%clk 0:01:23]} 28. Bxh4 {[%clk 0:00:39]}  e6 {[%clk 0:01:20]} 29. Nxg7 {[%clk 0:00:29]}  Kxg7 {[%clk 0:01:19]} 30. dxe6 {[%clk 0:00:27]}  Rxe6 {[%clk 0:01:14]} 31. Qd4+ {[%clk 0:00:27]}  Kh7 {[%clk 0:01:06]} 32. Rxe6 {[%clk 0:00:27]}  Qxe6 {[%clk 0:01:07]} 33. Bg3 {[%clk 0:00:27]}  Qxb3 {[%clk 0:01:03]} 34. Bxd6 {[%clk 0:00:18]}  Rd8 {[%clk 0:01:03]} 35. Rd3 {[%clk 0:00:13]}  Qc2 {[%clk 0:00:52]} 36. Rf3 {[%clk 0:00:11]}  Rd7 {[%clk 0:00:41]} 37. Qf6 {[%clk 0:00:08]}  Qd1+ {[%clk 0:00:39]} 38. Kh2 {[%clk 0:00:06]}  Qxd6+ {[%clk 0:00:36]} 39. Qxd6 {[%clk 0:00:07]}  Rxd6 {[%clk 0:00:36]} 40. Rxf7+ {[%clk 0:00:08]}  Kg8 {[%clk 0:00:37]} 41. Rxb7 {[%clk 0:00:08]}  Re6 {[%clk 0:00:33]} 42. b4 {[%clk 0:00:08]}  Ne7 {[%clk 0:00:34]} 43. Kg3 {[%clk 0:00:06]}  Kf7 {[%clk 0:00:34]} 44. b5 {[%clk 0:00:05]}  Kf6 {[%clk 0:00:33]} 45. Rb8 {[%clk 0:00:05]}  Nd5 {[%clk 0:00:32]} 46. Kf3 {[%clk 0:00:04]}  Ke5 {[%clk 0:00:24]} 47. g3 {[%clk 0:00:04]}  Rf6+ {[%clk 0:00:24]} 48. Ke2 {[%clk 0:00:02]}  Kd4 {[%clk 0:00:24]} 49. Rd8 {[%clk 0:00:02]}  Kc5 {[%clk 0:00:24]} 0-1


[Site "https://www.chess.com"]

[Event "Titled Tuesday Blitz March 08 Late 2022"]
[White "Tanenbaum, Zachary"]
[Black "Mkrtchyan, Mariam"]
[WhiteFideId "2060850"]
[BlackFideId "13310828"]
[WhiteElo "2168"]
[BlackElo "1984"]
[Result "1-0"]
[Round "02"]
[TimeControl "180+1"]
[Date "2022.03.09"]
[WhiteClock "0:02:08"]
[BlackClock "0:01:00"]

1. e4 {[%clk 0:03:00]}  c6 {[%clk 0:02:58]} 2. d4 {[%clk 0:03:00]}  d5 {[%clk 0:02:59]} 3. exd5 {[%clk 0:03:00]}  cxd5 {[%clk 0:02:59]} 4. Bd3 {[%clk 0:03:01]}  Nc6 {[%clk 0:02:59]} 5. c3 {[%clk 0:03:01]}  Qc7 {[%clk 0:02:59]} 6. Bg5 {[%clk 0:03:01]}  Nf6 {[%clk 0:02:42]} 7. Nd2 {[%clk 0:02:58]}  Bg4 {[%clk 0:02:39]} 8. Ngf3 {[%clk 0:02:57]}  e6 {[%clk 0:02:37]} 9. Bh4 {[%clk 0:02:56]}  Be7 {[%clk 0:02:33]} 10. Bg3 {[%clk 0:02:54]}  Bd6 {[%clk 0:02:32]} 11. O-O {[%clk 0:02:52]}  O-O {[%clk 0:02:31]} 12. Re1 {[%clk 0:02:47]}  Rfc8 {[%clk 0:02:08]} 13. a4 {[%clk 0:02:41]}  a6 {[%clk 0:01:54]} 14. Qb1 {[%clk 0:02:22]}  Bh5 {[%clk 0:01:46]} 15. Bxd6 {[%clk 0:02:20]}  Qxd6 {[%clk 0:01:46]} 16. Ne5 {[%clk 0:02:21]}  Bg6 {[%clk 0:01:42]} 17. Bxg6 {[%clk 0:02:21]}  hxg6 {[%clk 0:01:41]} 18. Re3 {[%clk 0:02:20]}  b5 {[%clk 0:01:23]} 19. f4 {[%clk 0:02:10]}  b4 {[%clk 0:01:21]} 20. Rh3 {[%clk 0:02:10]}  bxc3 {[%clk 0:01:18]} 21. Rh8+ {[%clk 0:02:10]}  Kxh8 {[%clk 0:01:15]} 22. Nxf7+ {[%clk 0:02:11]}  Kh7 {[%clk 0:01:09]} 23. Nxd6 {[%clk 0:02:11]}  Rd8 {[%clk 0:01:09]} 24. Nf7 {[%clk 0:02:11]}  Re8 {[%clk 0:01:02]} 25. Ng5+ {[%clk 0:02:10]}  Kh6 {[%clk 0:01:01]} 26. bxc3 {[%clk 0:02:09]}  Rac8 {[%clk 0:01:00]} 27. Qd3 {[%clk 0:02:08]} 1-0


[Site "https://www.chess.com"]

[Event "Titled Tuesday Blitz March 08 Late 2022"]
[White "Vakhlamov, Igor L."]
[Black "Toncheva, Nadya"]
[WhiteFideId "24126748"]
[BlackFideId "2924056"]
[WhiteElo "2401"]
[BlackElo "1884"]
[Result "1-0"]
[Round "02"]
[TimeControl "180+1"]
[Date "2022.03.09"]
[WhiteClock "0:00:31"]
[BlackClock "0:00:02"]

1. e4 {[%clk 0:03:00]}  c5 {[%clk 0:02:53]} 2. Nf3 {[%clk 0:03:00]}  d6 {[%clk 0:02:53]} 3. Nc3 {[%clk 0:03:00]}  Nf6 {[%clk 0:02:53]} 4. d4 {[%clk 0:03:00]}  cxd4 {[%clk 0:02:54]} 5. Qxd4 {[%clk 0:03:01]}  a6 {[%clk 0:02:53]} 6. e5 {[%clk 0:03:01]}  Nc6 {[%clk 0:02:49]} 7. Qa4 {[%clk 0:03:01]}  dxe5 {[%clk 0:02:28]} 8. Nxe5 {[%clk 0:03:02]}  Bd7 {[%clk 0:02:23]} 9. Nxd7 {[%clk 0:03:01]}  Qxd7 {[%clk 0:02:09]} 10. Be3 {[%clk 0:03:02]}  e6 {[%clk 0:02:07]} 11. Rd1 {[%clk 0:03:02]}  Qc8 {[%clk 0:01:59]} 12. a3 {[%clk 0:02:59]}  Be7 {[%clk 0:01:57]} 13. Bd3 {[%clk 0:02:59]}  O-O {[%clk 0:01:56]} 14. O-O {[%clk 0:02:59]}  b5 {[%clk 0:01:52]} 15. Qh4 {[%clk 0:02:59]}  Ne5 {[%clk 0:01:39]} 16. Bg5 {[%clk 0:02:48]}  Ng6 {[%clk 0:01:38]} 17. Qh3 {[%clk 0:02:45]}  Qc7 {[%clk 0:01:34]} 18. Rfe1 {[%clk 0:02:41]}  Rfd8 {[%clk 0:01:29]} 19. Qf3 {[%clk 0:02:15]}  Rac8 {[%clk 0:01:24]} 20. h4 {[%clk 0:01:59]}  Ne5 {[%clk 0:01:22]} 21. Qh3 {[%clk 0:01:52]}  Nxd3 {[%clk 0:01:18]} 22. Rxd3 {[%clk 0:01:53]}  h6 {[%clk 0:01:17]} 23. Bc1 {[%clk 0:01:32]}  Rxd3 {[%clk 0:01:15]} 24. Qxd3 {[%clk 0:01:33]}  Rd8 {[%clk 0:01:15]} 25. Qf3 {[%clk 0:01:32]}  Qc4 {[%clk 0:01:03]} 26. g3 {[%clk 0:01:30]}  Qc7 {[%clk 0:00:35]} 27. Bf4 {[%clk 0:01:29]}  Qb6 {[%clk 0:00:32]} 28. Be5 {[%clk 0:01:25]}  a5 {[%clk 0:00:23]} 29. Re2 {[%clk 0:01:19]}  b4 {[%clk 0:00:22]} 30. axb4 {[%clk 0:01:20]}  axb4 {[%clk 0:00:23]} 31. Ne4 {[%clk 0:01:20]}  Nxe4 {[%clk 0:00:15]} 32. Qxe4 {[%clk 0:01:21]}  b3 {[%clk 0:00:13]} 33. c4 {[%clk 0:01:14]}  Bc5 {[%clk 0:00:09]} 34. Kg2 {[%clk 0:01:13]}  Bd4 {[%clk 0:00:08]} 35. Rd2 {[%clk 0:00:46]}  Bxe5 {[%clk 0:00:03]} 36. Rxd8+ {[%clk 0:00:47]}  Qxd8 {[%clk 0:00:04]} 37. Qxe5 {[%clk 0:00:48]}  Qd1 {[%clk 0:00:03]} 38. c5 {[%clk 0:00:44]}  Qc2 {[%clk 0:00:03]} 39. h5 {[%clk 0:00:41]}  Kh7 {[%clk 0:00:02]} 40. g4 {[%clk 0:00:41]}  Kg8 {[%clk 0:00:02]} 41. Qd4 {[%clk 0:00:39]}  Kh7 {[%clk 0:00:02]} 42. Kf3 {[%clk 0:00:40]}  Kg8 {[%clk 0:00:02]} 43. Ke3 {[%clk 0:00:39]}  Kh7 {[%clk 0:00:03]} 44. Qd3+ {[%clk 0:00:36]}  Kg8 {[%clk 0:00:02]} 45. Qxc2 {[%clk 0:00:33]}  bxc2 {[%clk 0:00:03]} 46. Kd2 {[%clk 0:00:33]}  Kf8 {[%clk 0:00:03]} 47. Kxc2 {[%clk 0:00:33]}  g6 {[%clk 0:00:04]} 48. Kd3 {[%clk 0:00:31]}  Ke7 {[%clk 0:00:04]} 49. b4 {[%clk 0:00:31]}  Kd7 {[%clk 0:00:04]} 50. Kd4 {[%clk 0:00:30]}  Kc6 {[%clk 0:00:04]} 51. Ke5 {[%clk 0:00:30]}  gxh5 {[%clk 0:00:02]} 52. gxh5 {[%clk 0:00:31]} 1-0


[Site "https://www.chess.com"]

[Event "Titled Tuesday Blitz March 08 Late 2022"]
[White "Vine, Elzbieta"]
[Black "Spitzl, Vinzent"]
[WhiteFideId "1119320"]
[BlackFideId "12901253"]
[WhiteElo "1823"]
[BlackElo "2160"]
[Result "0-1"]
[Round "02"]
[TimeControl "180+1"]
[Date "2022.03.09"]
[WhiteClock "0:00:19"]
[BlackClock "0:00:47"]

1. e4 {[%clk 0:02:57]}  c5 {[%clk 0:02:58]} 2. Nf3 {[%clk 0:02:54]}  d6 {[%clk 0:02:56]} 3. d4 {[%clk 0:02:54]}  cxd4 {[%clk 0:02:57]} 4. Nxd4 {[%clk 0:02:53]}  Nf6 {[%clk 0:02:57]} 5. Nc3 {[%clk 0:02:52]}  a6 {[%clk 0:02:58]} 6. Bg5 {[%clk 0:02:49]}  e6 {[%clk 0:02:56]} 7. Qd2 {[%clk 0:02:34]}  Be7 {[%clk 0:02:50]} 8. O-O-O {[%clk 0:02:29]}  Qc7 {[%clk 0:02:47]} 9. h4 {[%clk 0:02:22]}  Nc6 {[%clk 0:02:38]} 10. h5 {[%clk 0:02:11]}  h6 {[%clk 0:02:33]} 11. Be3 {[%clk 0:02:04]}  b5 {[%clk 0:02:28]} 12. g4 {[%clk 0:02:03]}  Nxg4 {[%clk 0:02:20]} 13. Rg1 {[%clk 0:01:43]}  Nxe3 {[%clk 0:02:19]} 14. Qxe3 {[%clk 0:01:43]}  Bf6 {[%clk 0:02:19]} 15. Nf5 {[%clk 0:01:32]}  exf5 {[%clk 0:02:15]} 16. exf5+ {[%clk 0:01:32]}  Kf8 {[%clk 0:02:14]} 17. Nd5 {[%clk 0:01:26]}  Qd8 {[%clk 0:02:13]} 18. Re1 {[%clk 0:01:17]}  Bxf5 {[%clk 0:01:47]} 19. Qf3 {[%clk 0:01:01]}  Bd7 {[%clk 0:01:42]} 20. Nf4 {[%clk 0:00:51]}  Ne5 {[%clk 0:01:37]} 21. Qd5 {[%clk 0:00:47]}  Bc6 {[%clk 0:01:31]} 22. Qb3 {[%clk 0:00:40]}  Nf3 {[%clk 0:01:28]} 23. Ng6+ {[%clk 0:00:31]}  fxg6 {[%clk 0:01:26]} 24. hxg6 {[%clk 0:00:31]}  Qc7 {[%clk 0:01:21]} 25. Bg2 {[%clk 0:00:19]}  Nd4 {[%clk 0:00:47]} 0-1


[Site "https://www.chess.com"]